[Event "Early-Titled-Tuesday-Blitz-May-07-2024"]
[Site "Chess.com"]
[Date "2024.05.07"]
[Round "3"]
[White "tptagain"]
[Black "juancruzarias"]
[Result "0-1"]
[WhiteElo "2924"]
[BlackElo "2725"]
[TimeControl "180+1"]
[EndTime "8:32:21 PDT"]
[Termination "juancruzarias won on time"]

1. e4 {[%clk 0:03:00.9]} 1... c6 {[%clk 0:02:58.7]} 2. d4 {[%clk 0:02:58]} 2...
d5 {[%clk 0:02:59.2]} 3. e5 {[%clk 0:02:58.2]} 3... c5 {[%clk 0:02:59.7]} 4. Nf3
{[%clk 0:02:54.8]} 4... cxd4 {[%clk 0:02:59]} 5. Nxd4 {[%clk 0:02:53.4]} 5...
Nc6 {[%clk 0:02:59.1]} 6. Nxc6 {[%clk 0:02:52.6]} 6... bxc6 {[%clk 0:02:59.2]}
7. Bd3 {[%clk 0:02:52.7]} 7... e6 {[%clk 0:02:59.1]} 8. O-O {[%clk 0:02:51.8]}
8... a5 {[%clk 0:02:58.4]} 9. Nd2 {[%clk 0:02:48.6]} 9... Ne7 {[%clk 0:02:53]}
10. Nf3 {[%clk 0:02:45.8]} 10... Ba6 {[%clk 0:02:52.3]} 11. Bxa6 {[%clk
0:02:45.5]} 11... Rxa6 {[%clk 0:02:52.4]} 12. c4 {[%clk 0:02:45.1]} 12... Nf5
{[%clk 0:02:42.1]} 13. Qa4 {[%clk 0:02:28.7]} 13... Be7 {[%clk 0:02:33.4]} 14.
cxd5 {[%clk 0:02:26.3]} 14... Qxd5 {[%clk 0:02:34.3]} 15. Rd1 {[%clk 0:02:17.4]}
15... Qb5 {[%clk 0:02:34.7]} 16. Qxb5 {[%clk 0:02:06.3]} 16... cxb5 {[%clk
0:02:34.9]} 17. g4 {[%clk 0:02:06.6]} 17... Nh6 {[%clk 0:02:30.2]} 18. h3 {[%clk
0:01:56.8]} 18... O-O {[%clk 0:02:14.2]} 19. Be3 {[%clk 0:01:30]} 19... Rd8
{[%clk 0:02:01.9]} 20. Rxd8+ {[%clk 0:01:24.6]} 20... Bxd8 {[%clk 0:02:02.8]}
21. Rc1 {[%clk 0:01:18.9]} 21... Ra8 {[%clk 0:01:57.4]} 22. Nd4 {[%clk
0:01:10.8]} 22... Kf8 {[%clk 0:01:53.5]} 23. Nxb5 {[%clk 0:01:09.7]} 23... Ng8
{[%clk 0:01:54]} 24. a4 {[%clk 0:01:00.4]} 24... Ne7 {[%clk 0:01:53.9]} 25. Bc5
{[%clk 0:00:59.8]} 25... Ke8 {[%clk 0:01:53.2]} 26. Nd6+ {[%clk 0:00:59.4]}
26... Kf8 {[%clk 0:01:50.5]} 27. Rc3 {[%clk 0:01:00]} 27... Ng6 {[%clk
0:01:41.8]} 28. Nc4+ {[%clk 0:00:43.1]} 28... Ke8 {[%clk 0:01:38.9]} 29. Kg2
{[%clk 0:00:32.7]} 29... Kd7 {[%clk 0:01:32.2]} 30. Kg3 {[%clk 0:00:27.3]} 30...
Kc6 {[%clk 0:01:27.2]} 31. Bd6 {[%clk 0:00:27.6]} 31... Kd5 {[%clk 0:01:13.7]}
32. f4 {[%clk 0:00:26.1]} 32... Ke4 {[%clk 0:01:10.4]} 33. Re3+ {[%clk
0:00:23.4]} 33... Kd4 {[%clk 0:01:10.7]} 34. b3 {[%clk 0:00:23.7]} 34... Rc8
{[%clk 0:01:04.8]} 35. Re2 {[%clk 0:00:20.2]} 35... Kc3 {[%clk 0:01:02.2]} 36.
f5 {[%clk 0:00:18]} 36... Bh4+ {[%clk 0:00:59.2]} 37. Kf3 {[%clk 0:00:17.5]}
37... Ne7 {[%clk 0:00:58.4]} 38. Re3+ {[%clk 0:00:17.4]} 38... Kd4 {[%clk
0:00:56.9]} 39. fxe6 {[%clk 0:00:16.5]} 39... fxe6 {[%clk 0:00:56.3]} 40. Nxa5
{[%clk 0:00:16.8]} 40... Nd5 {[%clk 0:00:51.5]} 41. Re2 {[%clk 0:00:12.4]} 41...
Rc3+ {[%clk 0:00:49.9]} 42. Kg2 {[%clk 0:00:12.3]} 42... Rxb3 {[%clk 0:00:50.1]}
43. Rd2+ {[%clk 0:00:11.4]} 43... Ke3 {[%clk 0:00:49.4]} 44. Nc4+ {[%clk
0:00:11.8]} 44... Ke4 {[%clk 0:00:49.7]} 45. Kf1 {[%clk 0:00:07.4]} 45... Kf3
{[%clk 0:00:48.1]} 46. Rd1 {[%clk 0:00:06]} 46... Bg5 {[%clk 0:00:43.7]} 47. a5
{[%clk 0:00:05]} 47... Rc3 {[%clk 0:00:42.4]} 48. Nb2 {[%clk 0:00:02.7]} 48...
Ne3+ {[%clk 0:00:41.8]} 49. Ke1 {[%clk 0:00:03.4]} 49... Nxd1 {[%clk 0:00:40.9]}
50. Nxd1 {[%clk 0:00:03.7]} 50... Rc2 {[%clk 0:00:39.6]} 51. Bb4 {[%clk
0:00:02.5]} 51... Bh4+ {[%clk 0:00:36.7]} 52. Kf1 {[%clk 0:00:02.9]} 52... Rc1
{[%clk 0:00:36.8]} 0-1

[Event "Early-Titled-Tuesday-Blitz-May-07-2024"]
[Site "Chess.com"]
[Date "2024.05.07"]
[Round "3"]
[White "Kostya0705"]
[Black "Mops_2004"]
[Result "1-0"]
[WhiteElo "2543"]
[BlackElo "2811"]
[TimeControl "180+1"]
[EndTime "8:32:21 PDT"]
[Termination "Kostya0705 won by resignation"]

1. e4 {[%clk 0:03:00.9]} 1... g6 {[%clk 0:03:00.2]} 2. d4 {[%clk 0:03:00.5]}
2... Bg7 {[%clk 0:03:00.8]} 3. Nc3 {[%clk 0:03:01]} 3... d6 {[%clk 0:03:01.4]}
4. h4 {[%clk 0:03:01.1]} 4... h6 {[%clk 0:03:01.1]} 5. Be3 {[%clk 0:03:01.2]}
5... a6 {[%clk 0:03:01.1]} 6. g4 {[%clk 0:03:01.3]} 6... b5 {[%clk 0:03:00.8]}
7. Bg2 {[%clk 0:02:42.6]} 7... Bb7 {[%clk 0:03:00.7]} 8. g5 {[%clk 0:02:43.1]}
8... h5 {[%clk 0:02:45.5]} 9. Qd2 {[%clk 0:02:41.7]} 9... Nd7 {[%clk 0:02:45.4]}
10. O-O-O {[%clk 0:02:41.6]} 10... e6 {[%clk 0:02:45.9]} 11. f4 {[%clk
0:02:41.8]} 11... Ne7 {[%clk 0:02:45.9]} 12. Kb1 {[%clk 0:02:33.2]} 12... Nb6
{[%clk 0:02:40]} 13. b3 {[%clk 0:02:30.3]} 13... d5 {[%clk 0:02:40.4]} 14. f5
{[%clk 0:02:04.5]} 14... exf5 {[%clk 0:02:27.5]} 15. e5 {[%clk 0:02:04.6]} 15...
Qd7 {[%clk 0:01:54.3]} 16. Nh3 {[%clk 0:02:04.2]} 16... Nc6 {[%clk 0:01:54.6]}
17. Nf4 {[%clk 0:02:03.1]} 17... Nd8 {[%clk 0:01:54.8]} 18. Nce2 {[%clk
0:01:56.7]} 18... a5 {[%clk 0:01:47.1]} 19. a3 {[%clk 0:01:54.9]} 19... Bf8
{[%clk 0:01:46.2]} 20. Ka2 {[%clk 0:01:53.7]} 20... a4 {[%clk 0:01:24.7]} 21. b4
{[%clk 0:01:51.7]} 21... Nc4 {[%clk 0:01:24.9]} 22. Qc3 {[%clk 0:01:50.7]} 22...
Ra6 {[%clk 0:01:23.7]} 23. Rhe1 {[%clk 0:01:38.8]} 23... Ne6 {[%clk 0:01:23]}
24. Bc1 {[%clk 0:01:31.3]} 24... Be7 {[%clk 0:01:20.7]} 25. Qf3 {[%clk
0:01:28.6]} 25... c6 {[%clk 0:01:15.6]} 26. c3 {[%clk 0:01:22.1]} 26... Kf8
{[%clk 0:01:08]} 27. Bh3 {[%clk 0:01:09.2]} 27... Kg7 {[%clk 0:01:04.3]} 28. Rf1
{[%clk 0:01:08]} 28... Bc8 {[%clk 0:01:01.3]} 29. Rg1 {[%clk 0:01:07.5]} 29...
Nf8 {[%clk 0:00:50.8]} 30. Rdf1 {[%clk 0:01:05.8]} 30... Ra7 {[%clk 0:00:49.9]}
31. Ng3 {[%clk 0:01:05.5]} 31... Kg8 {[%clk 0:00:48]} 32. Nfxh5 {[%clk
0:00:27.5]} 32... gxh5 {[%clk 0:00:43.6]} 33. Nxf5 {[%clk 0:00:27.4]} 33... Qe8
{[%clk 0:00:43.3]} 34. Nh6+ {[%clk 0:00:25.6]} 34... Kg7 {[%clk 0:00:34.5]} 35.
Bxc8 {[%clk 0:00:17.2]} 35... Bd8 {[%clk 0:00:24.8]} 36. Qxh5 {[%clk 0:00:09.3]}
36... Ng6 {[%clk 0:00:20.4]} 37. Bf5 {[%clk 0:00:08.8]} 37... c5 {[%clk
0:00:17.4]} 38. bxc5 {[%clk 0:00:07.7]} 38... Ba5 {[%clk 0:00:15.3]} 39. Rf3
{[%clk 0:00:08]} 39... Rb7 {[%clk 0:00:12.7]} 40. Rgf1 {[%clk 0:00:07.8]} 40...
Nf8 {[%clk 0:00:10.9]} 41. Bd3 {[%clk 0:00:05.6]} 41... Nxe5 {[%clk 0:00:02.7]}
42. dxe5 {[%clk 0:00:06.2]} 42... Qe6 {[%clk 0:00:02.2]} 43. Rxf7+ {[%clk
0:00:05.1]} 1-0

[Event "Early-Titled-Tuesday-Blitz-May-07-2024"]
[Site "Chess.com"]
[Date "2024.05.07"]
[Round "3"]
[White "Winner_7777"]
[Black "LeoWin2012"]
[Result "1-0"]
[WhiteElo "2591"]
[BlackElo "2305"]
[TimeControl "180+1"]
[EndTime "8:32:21 PDT"]
[Termination "Winner_7777 won by checkmate"]

1. d4 {[%clk 0:03:00.9]} 1... Nf6 {[%clk 0:02:56.6]} 2. c4 {[%clk 0:03:01.3]}
2... e6 {[%clk 0:02:54.5]} 3. Nc3 {[%clk 0:03:01.9]} 3... Bb4 {[%clk 0:02:54]}
4. f3 {[%clk 0:03:02]} 4... O-O {[%clk 0:02:50]} 5. a3 {[%clk 0:03:00.6]} 5...
Bxc3+ {[%clk 0:02:48.9]} 6. bxc3 {[%clk 0:03:01.5]} 6... c5 {[%clk 0:02:48.6]}
7. d5 {[%clk 0:03:01.8]} 7... d6 {[%clk 0:02:42.8]} 8. e4 {[%clk 0:03:02]} 8...
e5 {[%clk 0:02:42.7]} 9. Bd3 {[%clk 0:02:51.4]} 9... Nbd7 {[%clk 0:02:32.1]} 10.
Ne2 {[%clk 0:02:47.8]} 10... Nb6 {[%clk 0:02:30.4]} 11. h4 {[%clk 0:02:38.8]}
11... Bd7 {[%clk 0:02:23.8]} 12. a4 {[%clk 0:02:37.6]} 12... a5 {[%clk
0:02:18.3]} 13. h5 {[%clk 0:01:35.1]} 13... h6 {[%clk 0:02:10.6]} 14. Qb3 {[%clk
0:01:13.1]} 14... Ra6 {[%clk 0:01:42.5]} 15. Be3 {[%clk 0:00:54.2]} 15... Qe8
{[%clk 0:01:41.6]} 16. Bc2 {[%clk 0:00:54.5]} 16... Nh7 {[%clk 0:01:21.7]} 17.
Ng3 {[%clk 0:00:27.1]} 17... Kh8 {[%clk 0:00:52.2]} 18. Kf2 {[%clk 0:00:18.9]}
18... Qe7 {[%clk 0:00:38.9]} 19. Nf5 {[%clk 0:00:12]} 19... Bxf5 {[%clk
0:00:37.6]} 20. exf5 {[%clk 0:00:12.9]} 20... f6 {[%clk 0:00:35.2]} 21. f4
{[%clk 0:00:05.4]} 21... Rf7 {[%clk 0:00:30.2]} 22. Rae1 {[%clk 0:00:04.1]}
22... Nf8 {[%clk 0:00:27.5]} 23. g3 {[%clk 0:00:02.8]} 23... Nfd7 {[%clk
0:00:26.7]} 24. Kf3 {[%clk 0:00:02.9]} 24... Qd8 {[%clk 0:00:19.8]} 25. Bc1
{[%clk 0:00:03.1]} 25... Re7 {[%clk 0:00:20]} 26. Qb5 {[%clk 0:00:03.4]} 26...
Qe8 {[%clk 0:00:18.3]} 27. Kf2 {[%clk 0:00:02.8]} 27... Ra8 {[%clk 0:00:12.4]}
28. Re3 {[%clk 0:00:03]} 28... exf4 {[%clk 0:00:11.2]} 29. gxf4 {[%clk
0:00:03.9]} 29... Rxe3 {[%clk 0:00:11.1]} 30. Bxe3 {[%clk 0:00:04.8]} 30... Qe7
{[%clk 0:00:09.7]} 31. Re1 {[%clk 0:00:04.8]} 31... Qf7 {[%clk 0:00:08]} 32. Bd1
{[%clk 0:00:03.8]} 32... Re8 {[%clk 0:00:06.7]} 33. Bf3 {[%clk 0:00:04.5]} 33...
Re7 {[%clk 0:00:06.1]} 34. Bd2 {[%clk 0:00:04.5]} 34... Qe8 {[%clk 0:00:05.9]}
35. Re6 {[%clk 0:00:04.1]} 35... Qd8 {[%clk 0:00:02.4]} 36. Rxd6 {[%clk
0:00:04.1]} 36... Qe8 {[%clk 0:00:02.4]} 37. Rxb6 {[%clk 0:00:03.9]} 37... Nxb6
{[%clk 0:00:01.4]} 38. Qxb6 {[%clk 0:00:04.8]} 38... Qd8 {[%clk 0:00:01]} 39.
Qxd8+ {[%clk 0:00:04.7]} 39... Kh7 {[%clk 0:00:01.4]} 40. Qxe7 {[%clk
0:00:05.2]} 40... b5 {[%clk 0:00:01.9]} 41. d6 {[%clk 0:00:05.6]} 41... bxa4
{[%clk 0:00:02.2]} 42. d7 {[%clk 0:00:05.7]} 42... a3 {[%clk 0:00:03.1]} 43.
d8=Q {[%clk 0:00:05.7]} 43... a2 {[%clk 0:00:04]} 44. Qf7 {[%clk 0:00:04.7]}
44... a1=Q {[%clk 0:00:04.9]} 45. Qdg8# {[%clk 0:00:05]} 1-0

[Event "Early-Titled-Tuesday-Blitz-May-07-2024"]
[Site "Chess.com"]
[Date "2024.05.07"]
[Round "3"]
[White "KononenkoD"]
[Black "PeshkaCh"]
[Result "0-1"]
[WhiteElo "2616"]
[BlackElo "2881"]
[TimeControl "180+1"]
[EndTime "8:32:23 PDT"]
[Termination "PeshkaCh won by resignation"]

1. d4 {[%clk 0:02:53.8]} 1... Nf6 {[%clk 0:03:00]} 2. c4 {[%clk 0:02:53.1]} 2...
e6 {[%clk 0:03:00.6]} 3. g3 {[%clk 0:02:52.6]} 3... d5 {[%clk 0:03:01.1]} 4. Nf3
{[%clk 0:02:48.9]} 4... Be7 {[%clk 0:03:01.7]} 5. Bg2 {[%clk 0:02:48]} 5... O-O
{[%clk 0:03:02.2]} 6. O-O {[%clk 0:02:48.5]} 6... dxc4 {[%clk 0:03:02.8]} 7. Qc2
{[%clk 0:02:48.6]} 7... a6 {[%clk 0:03:03]} 8. a4 {[%clk 0:02:48.9]} 8... Bd7
{[%clk 0:03:03.4]} 9. Qxc4 {[%clk 0:02:49.4]} 9... Bc6 {[%clk 0:03:04]} 10. Bf4
{[%clk 0:02:47]} 10... Bd6 {[%clk 0:03:04.3]} 11. Nbd2 {[%clk 0:02:46.8]} 11...
Ne4 {[%clk 0:03:00]} 12. Nxe4 {[%clk 0:02:44.3]} 12... Bxe4 {[%clk 0:03:00.9]}
13. Bxd6 {[%clk 0:02:44.3]} 13... Qxd6 {[%clk 0:03:00.1]} 14. Rfc1 {[%clk
0:02:41]} 14... c6 {[%clk 0:02:59.2]} 15. Ne5 {[%clk 0:02:28.9]} 15... Bxg2
{[%clk 0:02:57]} 16. Kxg2 {[%clk 0:02:29.1]} 16... a5 {[%clk 0:02:48]} 17. Qc5
{[%clk 0:02:24.9]} 17... Rd8 {[%clk 0:02:40.5]} 18. Qxd6 {[%clk 0:02:23.6]}
18... Rxd6 {[%clk 0:02:41.4]} 19. e3 {[%clk 0:02:24.1]} 19... Rd8 {[%clk
0:02:07.6]} 20. Rc5 {[%clk 0:02:13.7]} 20... Na6 {[%clk 0:01:53.5]} 21. Rc3
{[%clk 0:01:23.3]} 21... c5 {[%clk 0:01:34.7]} 22. dxc5 {[%clk 0:01:17.4]} 22...
Rd5 {[%clk 0:01:27.3]} 23. c6 {[%clk 0:00:55.5]} 23... Rxe5 {[%clk 0:01:03]} 24.
cxb7 {[%clk 0:00:54.9]} 24... Re8 {[%clk 0:01:03.6]} 25. Rc6 {[%clk 0:00:34.9]}
25... Nb8 {[%clk 0:01:01.3]} 26. Rc8 {[%clk 0:00:35.4]} 26... Kf8 {[%clk
0:01:01.7]} 27. b4 {[%clk 0:00:35.8]} 27... axb4 {[%clk 0:00:47.7]} 28. a5
{[%clk 0:00:35.3]} 28... b3 {[%clk 0:00:38.9]} 29. a6 {[%clk 0:00:34.8]} 29...
b2 {[%clk 0:00:21.5]} 30. a7 {[%clk 0:00:34.4]} 30... bxa1=Q {[%clk 0:00:11.3]}
31. Rxe8+ {[%clk 0:00:34.2]} 31... Kxe8 {[%clk 0:00:12.2]} 32. axb8=Q+ {[%clk
0:00:34.5]} 32... Ke7 {[%clk 0:00:12.9]} 33. Qc7+ {[%clk 0:00:34.7]} 33... Kf6
{[%clk 0:00:13.5]} 34. b8=Q {[%clk 0:00:35.2]} 34... Rf5 {[%clk 0:00:08]} 35.
Qbd8+ {[%clk 0:00:26.7]} 35... Kg6 {[%clk 0:00:07.3]} 36. Qh4 {[%clk 0:00:25.2]}
36... h5 {[%clk 0:00:05.6]} 37. Qe4 {[%clk 0:00:18.5]} 37... Kh6 {[%clk
0:00:03.1]} 38. Qd8 {[%clk 0:00:15.4]} 38... Kh7 {[%clk 0:00:02.7]} 39. h3
{[%clk 0:00:13]} 39... Qb2 {[%clk 0:00:02.9]} 40. Qxf5+ {[%clk 0:00:07.1]} 40...
exf5 {[%clk 0:00:03]} 41. Qg5 {[%clk 0:00:07]} 41... g6 {[%clk 0:00:03]} 42. Qf6
{[%clk 0:00:06.8]} 42... Qxf6 {[%clk 0:00:03.1]} 0-1

[Event "Early-Titled-Tuesday-Blitz-May-07-2024"]
[Site "Chess.com"]
[Date "2024.05.07"]
[Round "3"]
[White "Onischuk_V"]
[Black "Firouzja2003"]
[Result "0-1"]
[WhiteElo "2820"]
[BlackElo "3206"]
[TimeControl "180+1"]
[EndTime "8:32:24 PDT"]
[Termination "Firouzja2003 won on time"]

1. e4 {[%clk 0:03:00.9]} 1... c5 {[%clk 0:03:00.3]} 2. Nf3 {[%clk 0:03:01]} 2...
d6 {[%clk 0:03:00.9]} 3. d4 {[%clk 0:03:00.6]} 3... cxd4 {[%clk 0:03:01.5]} 4.
Nxd4 {[%clk 0:03:01.2]} 4... Nf6 {[%clk 0:03:02.1]} 5. Nc3 {[%clk 0:03:01.5]}
5... a6 {[%clk 0:03:02.5]} 6. a4 {[%clk 0:03:01.6]} 6... h6 {[%clk 0:02:46.8]}
7. h3 {[%clk 0:02:42.1]} 7... e5 {[%clk 0:02:42.2]} 8. Nde2 {[%clk 0:02:32.4]}
8... Be6 {[%clk 0:02:34]} 9. g4 {[%clk 0:02:32.5]} 9... Nc6 {[%clk 0:02:29.2]}
10. Bg2 {[%clk 0:02:32.5]} 10... Nb4 {[%clk 0:02:29.2]} 11. f4 {[%clk
0:02:21.5]} 11... Be7 {[%clk 0:02:06.4]} 12. O-O {[%clk 0:02:15]} 12... Rc8
{[%clk 0:02:00.7]} 13. Kh1 {[%clk 0:02:12.1]} 13... O-O {[%clk 0:01:53.2]} 14.
Ng3 {[%clk 0:02:03.4]} 14... exf4 {[%clk 0:01:35.6]} 15. Bxf4 {[%clk 0:02:02.9]}
15... Nd7 {[%clk 0:01:20.6]} 16. a5 {[%clk 0:01:02]} 16... Ne5 {[%clk
0:01:15.5]} 17. Ra4 {[%clk 0:01:01.4]} 17... Nbc6 {[%clk 0:00:52.4]} 18. Nd5
{[%clk 0:00:58.4]} 18... Bg5 {[%clk 0:00:51.9]} 19. Qd2 {[%clk 0:00:46.7]} 19...
Bxf4 {[%clk 0:00:47.3]} 20. Rxf4 {[%clk 0:00:46.6]} 20... Ne7 {[%clk 0:00:37.8]}
21. Nxe7+ {[%clk 0:00:36.8]} 21... Qxe7 {[%clk 0:00:37.9]} 22. Nf5 {[%clk
0:00:37.6]} 22... Qg5 {[%clk 0:00:29.8]} 23. Rf2 {[%clk 0:00:01.9]} 23... Rc5
{[%clk 0:00:09]} 24. Qxg5 {[%clk 0:00:00.9]} 24... hxg5 {[%clk 0:00:09.9]} 25.
Nxd6 {[%clk 0:00:01]} 25... Rd8 {[%clk 0:00:08.2]} 26. Nf5 {[%clk 0:00:01.1]}
26... Nc4 {[%clk 0:00:05.2]} 27. b3 {[%clk 0:00:00.6]} 27... Rxa5 {[%clk
0:00:04.9]} 28. Rxa5 {[%clk 0:00:00.5]} 28... Nxa5 {[%clk 0:00:05.8]} 29. Ne3
{[%clk 0:00:00.9]} 29... Nc6 {[%clk 0:00:06.3]} 30. Nd5 {[%clk 0:00:01.2]} 30...
g6 {[%clk 0:00:07]} 31. Kg1 {[%clk 0:00:01.7]} 31... Kg7 {[%clk 0:00:07.5]} 32.
Rd2 {[%clk 0:00:02.2]} 32... Ne5 {[%clk 0:00:07.8]} 33. Kf2 {[%clk 0:00:02.7]}
33... Rc8 {[%clk 0:00:08.2]} 34. Ke3 {[%clk 0:00:02.9]} 34... b5 {[%clk
0:00:08.5]} 35. Kd4 {[%clk 0:00:02.8]} 35... f6 {[%clk 0:00:07.8]} 36. Ke3
{[%clk 0:00:02.9]} 36... a5 {[%clk 0:00:07.4]} 37. Bf1 {[%clk 0:00:03.1]} 37...
a4 {[%clk 0:00:07.2]} 38. Bxb5 {[%clk 0:00:02]} 38... a3 {[%clk 0:00:07.8]} 39.
c4 {[%clk 0:00:02.4]} 39... Rh8 {[%clk 0:00:08.4]} 40. Ra2 {[%clk 0:00:02]}
40... Rxh3+ {[%clk 0:00:09]} 41. Kd4 {[%clk 0:00:02.6]} 41... Rxb3 {[%clk
0:00:09.8]} 42. c5 {[%clk 0:00:02.5]} 42... Rxb5 {[%clk 0:00:09.4]} 43. Rxa3
{[%clk 0:00:03.1]} 43... Nc6+ {[%clk 0:00:07.2]} 44. Kc4 {[%clk 0:00:02.8]}
44... Rb4+ {[%clk 0:00:07.9]} 45. Kc3 {[%clk 0:00:03]} 45... Rxe4 {[%clk
0:00:08.3]} 46. Ra6 {[%clk 0:00:03.1]} 46... Bxd5 {[%clk 0:00:08.4]} 0-1

[Event "Early-Titled-Tuesday-Blitz-May-07-2024"]
[Site "Chess.com"]
[Date "2024.05.07"]
[Round "3"]
[White "Road2GM3000"]
[Black "ravengelic"]
[Result "0-1"]
[WhiteElo "2464"]
[BlackElo "2633"]
[TimeControl "180+1"]
[EndTime "8:32:24 PDT"]
[Termination "ravengelic won by resignation"]

1. d4 {[%clk 0:03:00.9]} 1... Nf6 {[%clk 0:02:59.7]} 2. c4 {[%clk 0:03:01.4]}
2... g6 {[%clk 0:02:59.2]} 3. Nc3 {[%clk 0:03:01.7]} 3... Bg7 {[%clk 0:02:58.5]}
4. e4 {[%clk 0:03:02.2]} 4... d6 {[%clk 0:02:59.3]} 5. f4 {[%clk 0:03:02.8]}
5... O-O {[%clk 0:03:00]} 6. Nf3 {[%clk 0:03:03.4]} 6... c5 {[%clk 0:03:00.7]}
7. d5 {[%clk 0:03:03.8]} 7... b5 {[%clk 0:03:00.7]} 8. cxb5 {[%clk 0:03:03.7]}
8... a6 {[%clk 0:02:59.5]} 9. a4 {[%clk 0:03:03.7]} 9... axb5 {[%clk 0:02:59.7]}
10. Bxb5 {[%clk 0:03:04.6]} 10... Ba6 {[%clk 0:02:59.6]} 11. Bd2 {[%clk
0:03:04.5]} 11... Nbd7 {[%clk 0:02:55.6]} 12. O-O {[%clk 0:03:04.2]} 12... Qb6
{[%clk 0:02:54.8]} 13. Kh1 {[%clk 0:03:03.2]} 13... c4 {[%clk 0:02:54.2]} 14.
Qe2 {[%clk 0:02:58.6]} 14... Rfc8 {[%clk 0:02:51.1]} 15. e5 {[%clk 0:02:54.9]}
15... Bxb5 {[%clk 0:02:29.8]} 16. exf6 {[%clk 0:02:54.6]} 16... exf6 {[%clk
0:02:26.8]} 17. Nxb5 {[%clk 0:02:48.1]} 17... Re8 {[%clk 0:02:25.2]} 18. Qxc4
{[%clk 0:02:44.7]} 18... Nc5 {[%clk 0:02:24]} 19. Bb4 {[%clk 0:02:36.5]} 19...
Ne4 {[%clk 0:02:22.6]} 20. Nfd4 {[%clk 0:02:29]} 20... Rac8 {[%clk 0:02:19.2]}
21. Qd3 {[%clk 0:02:24.8]} 21... f5 {[%clk 0:02:17.1]} 22. Bc3 {[%clk 0:02:20]}
22... Qc5 {[%clk 0:02:12.8]} 23. Nc6 {[%clk 0:02:05]} 23... Bxc3 {[%clk
0:02:02.2]} 24. bxc3 {[%clk 0:01:56.8]} 24... Nf2+ {[%clk 0:02:02.8]} 25. Rxf2
{[%clk 0:01:57.1]} 25... Qxf2 {[%clk 0:02:03.7]} 26. Qf1 {[%clk 0:01:48.7]}
26... Qc5 {[%clk 0:02:00.5]} 27. h3 {[%clk 0:01:40.8]} 27... Qxd5 {[%clk
0:01:55]} 28. Nb4 {[%clk 0:01:34.4]} 28... Qb3 {[%clk 0:01:43.8]} 29. Qd1 {[%clk
0:01:29.6]} 29... Qb2 {[%clk 0:01:29.7]} 30. Nd5 {[%clk 0:01:03.1]} 30... Re2
{[%clk 0:01:17.6]} 31. Rb1 {[%clk 0:00:46.6]} 31... Rd2 {[%clk 0:01:01.7]} 32.
Rxb2 {[%clk 0:00:38.6]} 32... Rxd1+ {[%clk 0:01:01.9]} 33. Kh2 {[%clk
0:00:36.4]} 33... Rxd5 {[%clk 0:01:02.8]} 34. Ra2 {[%clk 0:00:21.4]} 34... Rc4
{[%clk 0:01:01.6]} 35. Ra3 {[%clk 0:00:20.4]} 35... Rxf4 {[%clk 0:00:58.3]} 36.
Kg3 {[%clk 0:00:19.8]} 36... Rc4 {[%clk 0:00:55]} 37. Kf3 {[%clk 0:00:20.4]}
37... f4 {[%clk 0:00:50.1]} 38. Nd4 {[%clk 0:00:13.7]} 38... Ra5 {[%clk
0:00:43.4]} 39. Kxf4 {[%clk 0:00:04.1]} 39... Raxa4 {[%clk 0:00:43.4]} 40. Rb3
{[%clk 0:00:02.9]} 40... Rxd4+ {[%clk 0:00:43.7]} 41. cxd4 {[%clk 0:00:03.8]}
41... Rxd4+ {[%clk 0:00:44.3]} 42. Ke3 {[%clk 0:00:04.7]} 42... Rd5 {[%clk
0:00:44.2]} 43. Rb7 {[%clk 0:00:05.2]} 43... Kg7 {[%clk 0:00:44.2]} 44. Ke4
{[%clk 0:00:05.5]} 44... Re5+ {[%clk 0:00:44.8]} 45. Kf4 {[%clk 0:00:06.1]}
45... Re6 {[%clk 0:00:45.7]} 46. Rd7 {[%clk 0:00:06.3]} 46... h5 {[%clk
0:00:46.1]} 47. g4 {[%clk 0:00:06.7]} 47... hxg4 {[%clk 0:00:45.7]} 48. hxg4
{[%clk 0:00:07.6]} 48... Rf6+ {[%clk 0:00:45.7]} 49. Ke4 {[%clk 0:00:06.6]}
49... g5 {[%clk 0:00:45.7]} 50. Ke3 {[%clk 0:00:03.9]} 50... Rf4 {[%clk
0:00:44.8]} 51. Rxd6 {[%clk 0:00:04.6]} 51... Rxg4 {[%clk 0:00:45.4]} 52. Kf3
{[%clk 0:00:05.5]} 52... Rf4+ {[%clk 0:00:44.6]} 53. Kg3 {[%clk 0:00:06.2]}
53... Rf6 {[%clk 0:00:45.4]} 54. Rd5 {[%clk 0:00:06.4]} 54... Kg6 {[%clk
0:00:45.8]} 55. Kg4 {[%clk 0:00:06.4]} 55... Rf4+ {[%clk 0:00:46.2]} 56. Kg3
{[%clk 0:00:07.2]} 56... f6 {[%clk 0:00:46.6]} 57. Rd8 {[%clk 0:00:08]} 57...
Re4 {[%clk 0:00:46.6]} 58. Rg8+ {[%clk 0:00:07.4]} 58... Kf5 {[%clk 0:00:46.8]}
59. Kf3 {[%clk 0:00:07.4]} 59... Rf4+ {[%clk 0:00:46.7]} 60. Kg3 {[%clk
0:00:07.5]} 60... Ra4 {[%clk 0:00:47.5]} 61. Ra8 {[%clk 0:00:08]} 61... Rxa8
{[%clk 0:00:47.6]} 0-1